bitfinex/quotes_BTCUSD_20250527
["timestamp","ask_amount","ask_price","bid_price","bid_amount"]
[1748330050676,0.01934752,109000.0,108990.0,1.40906113]
[1748330051084,0.001,109000.0,108990.0,1.40906113]
[1748330051309,0.001,109000.0,108990.0,1.74906113]
[1748330055084,0.01017363,109000.0,108990.0,1.74906113]
[1748330055234,0.001,109000.0,108990.0,1.74906113]
[1748330061489,0.001,109000.0,108990.0,1.40934059]
[1748330066363,0.001,109000.0,108990.0,2.07934213]
[1748330067705,0.00104,109000.0,108990.0,2.07934213]
[1748330068424,0.00104,109000.0,108990.0,1.74934059]
[1748330070011,0.00104,109000.0,108990.0,2.07934213]
[1748330074845,0.00104,109000.0,108990.0,2.47538213]
[1748330077006,0.00104,109000.0,108990.0,1.81537904]
[1748330077230,0.00104,109000.0,108990.0,2.47538212]
[1748330092627,0.00104,109000.0,108990.0,2.20022212]
[1748330092881,0.00104,109000.0,108990.0,1.87022058]
[1748330093071,0.01021363,109000.0,108990.0,2.12946058]
[1748330093332,0.00104,109000.0,108990.0,2.12946058]
[1748330093515,0.01021355,109000.0,108990.0,2.12946058]
[1748330093752,0.00104,109000.0,108990.0,2.12946058]
[1748330094436,0.00104,109000.0,108990.0,2.12946057]
[1748330094863,0.00104,109000.0,108990.0,2.14536057]
[1748330094991,0.00104,109000.0,108990.0,2.47536211]
[1748330096994,0.00104,109000.0,108990.0,2.31366615]
[1748330097544,0.00104,109000.0,108990.0,2.3320162]
[1748330098218,0.00104,109000.0,108990.0,2.00201466]
[1748330099795,0.03668856,109020.0,109010.0,0.88099033]
[1748330099995,0.05218856,109020.0,109010.0,1.71817684]
[1748330100387,0.05218856,109020.0,109010.0,1.74569484]
[1748330100830,0.06858856,109020.0,109010.0,1.74569484]
[1748330101077,0.00013652,109020.0,109010.0,1.7550901]
[1748330101285,0.00013652,109020.0,109010.0,1.7866901]
[1748330101695,0.00113652,109020.0,109010.0,1.7906901]
[1748330101904,0.00113652,109020.0,109010.0,1.79069009]
[1748330102570,0.00113652,109020.0,109010.0,1.78869009]
[1748330103856,0.00013652,109020.0,109010.0,1.78869009]
[1748330104291,0.00013652,109020.0,109010.0,1.79269009]
[1748330105204,0.00017652,109020.0,109010.0,1.79269009]
[1748330105427,0.04963885,109050.0,109040.0,0.21093074]
[1748330105645,0.0684748,109050.0,109040.0,1.31942977]
[1748330105869,0.26961768,109050.0,109040.0,1.31025942]
[1748330106078,0.24210915,109050.0,109040.0,0.80600948]
[1748330106291,0.24210915,109050.0,109040.0,0.77517698]
[1748330106507,0.24210915,109050.0,109040.0,0.74766498]
[1748330107133,0.24410915,109050.0,109040.0,0.55865584]
[1748330108024,0.24510915,109050.0,109040.0,0.55865584]
[1748330109541,0.24514915,109050.0,109040.0,0.55865584]
[1748330109733,0.24514915,109050.0,109040.0,0.64817735]
[1748330109951,0.24514915,109050.0,109040.0,0.97817889]
[1748330110491,0.23657839,109050.0,109040.0,0.97817889]
[1748330112149,0.23657839,109050.0,109040.0,0.88861738]
[1748330113267,0.04157077,109040.0,109030.0,0.027513]
[1748330113481,0.22498969,109040.0,109030.0,0.685273]
[1748330114571,0.22498969,109040.0,109030.0,0.686273]
[1748330114799,0.22498969,109040.0,109030.0,0.687273]
[1748330115236,0.22498969,109040.0,109030.0,1.01727454]
[1748330115839,0.22498969,109040.0,109030.0,1.10679605]
[1748330116063,0.20888969,109040.0,109030.0,1.10679605]
[1748330116272,0.22538969,109040.0,109030.0,1.10679605]
[1748330117611,0.02751232,109040.0,109030.0,1.40729195]
[1748330117819,0.02751232,109040.0,109030.0,1.39812067]
[1748330117820,0.21093124,109040.0,109030.0,1.39812067]
[1748330118026,0.21093124,109040.0,109030.0,1.40729245]
[1748330118239,0.22743124,109040.0,109030.0,1.40729245]
[1748330119086,0.22743124,109040.0,109030.0,1.41646398]
[1748330120017,0.22743124,109040.0,109030.0,1.08646244]
[1748330120242,0.22743124,109040.0,109030.0,1.40729245]
[1748330120475,0.22508978,109040.0,109030.0,0.77679451]
[1748330120694,0.21591892,109040.0,109030.0,0.77679451]
[1748330124628,0.22508978,109040.0,109030.0,0.77679451]
[1748330124885,0.20908978,109040.0,109030.0,0.78596629]
[1748330125179,0.19258978,109040.0,109030.0,0.79513799]
[1748330125403,0.01834147,109040.0,109030.0,1.31774689]
[1748330125611,0.03668259,109040.0,109030.0,1.33608911]
[1748330125823,0.04585353,109040.0,109030.0,1.33608911]
[1748330126029,0.2201021,109040.0,109030.0,1.31774664]
[1748330126238,0.2201021,109040.0,109030.0,1.32691809]
[1748330126665,0.2201021,109040.0,109030.0,0.99691655]
[1748330126881,0.21093149,109040.0,109030.0,0.99691655]
[1748330127093,0.22703149,109040.0,109030.0,0.33915655]
[1748330127306,0.22703149,109040.0,109030.0,1.00520783]
[1748330127517,0.02751257,109040.0,109030.0,1.00520783]
[1748330127710,0.21093149,109040.0,109030.0,0.99603655]
[1748330128161,0.21093149,109040.0,109030.0,1.00520791]
[1748330129621,0.01834129,109040.0,109030.0,1.00520774]
[1748330129991,0.20176021,109040.0,109030.0,1.00520791]
[1748330130353,0.01834129,109040.0,109030.0,1.00520791]
[1748330130546,0.01834129,109040.0,109030.0,1.11075296]
[1748330130753,0.02751215,109040.0,109030.0,1.11075296]
[1748330131192,0.02751156,109040.0,109030.0,1.7957545]
[1748330132255,0.01834079,109040.0,109030.0,1.7957545]
[1748330132497,0.02751148,109040.0,109030.0,1.7957545]
[1748330133030,0.00053634,109050.0,109040.0,0.21093056]
[1748330133258,0.01887545,109050.0,109040.0,0.69341016]
[1748330133480,0.00053634,109050.0,109040.0,0.69341016]
[1748330134153,0.00153634,109050.0,109040.0,1.03341016]
[1748330134366,0.00253634,109050.0,109040.0,1.03341016]
[1748330135249,0.00153634,109050.0,109040.0,0.70340862]
[1748330135474,0.00153634,109050.0,109040.0,1.03441016]
[1748330136381,0.00053634,109050.0,109040.0,1.03441016]
[1748330136599,0.00053634,109050.0,109040.0,1.03541016]
[1748330142431,0.00970585,109050.0,109040.0,0.98036862]
[1748330142645,0.00970585,109050.0,109040.0,1.31037016]
[1748330142853,0.00970577,109050.0,109040.0,1.31037016]
[1748330143330,0.02804513,109050.0,109040.0,1.69009016]
[1748330143510,0.00970577,109050.0,109040.0,1.69009016]
[1748330143750,0.01887537,109050.0,109040.0,1.69009016]
[1748330144671,0.00970577,109050.0,109040.0,1.69009016]
[1748330144882,0.01887528,109050.0,109040.0,1.69009016]
[1748330145044,0.03721489,109050.0,109040.0,1.71759816]
[1748330146624,0.04638491,109050.0,109040.0,1.71759816]
[1748330147371,0.03721472,109050.0,109040.0,1.71759816]
[1748330147585,0.04638465,109050.0,109040.0,1.73349816]
[1748330148252,0.03721472,109050.0,109040.0,1.73349816]
[1748330148460,0.04638465,109050.0,109040.0,1.73349816]
[1748330149406,0.01887528,109050.0,109040.0,1.73349816]
[1748330149618,0.02804496,109050.0,109040.0,1.73349816]
[1748330149835,0.01887528,109050.0,109040.0,1.73349816]
[1748330150041,0.02804496,109050.0,109040.0,1.73349816]
[1748330151034,0.03721481,109050.0,109040.0,1.73349816]
[1748330151241,0.04638474,109050.0,109040.0,1.71759816]
[1748330151751,0.04638533,109050.0,109040.0,1.71759816]
[1748330152261,0.22061792,109050.0,109040.0,1.37838636]
[1748330152460,0.20227839,109050.0,109040.0,1.4175679]
[1748330152796,0.19310846,109050.0,109040.0,1.69248798]
[1748330153013,0.19310846,109050.0,109040.0,1.7016585]
[1748330153457,0.19310846,109050.0,109040.0,1.69248798]
[1748330153638,0.19310846,109050.0,109040.0,1.70165859]
[1748330154057,0.19310846,109050.0,109040.0,1.71082911]
[1748330154415,0.01887612,109050.0,109040.0,1.71082911]
[1748330154624,0.20227822,109050.0,109040.0,1.67415059]
[1748330154826,0.20227822,109050.0,109040.0,1.68332111]
[1748330155507,0.20227822,109050.0,109040.0,1.69249146]
[1748330155508,0.01887612,109050.0,109040.0,1.69249146]
[1748330155657,0.01887612,109050.0,109040.0,1.70899146]
[1748330156096,0.21144832,109050.0,109040.0,1.69982111]
[1748330157523,0.21144832,109050.0,109040.0,1.70899155]
[1748330157938,0.02804622,109050.0,109040.0,1.70899113]
[1748330158329,0.01887612,109050.0,109040.0,1.70899113]
[1748330159468,0.02804622,109050.0,109040.0,1.70899113]
[1748330160075,0.01887561,109050.0,109040.0,1.70899113]
[1748330160280,0.02804554,109050.0,109040.0,1.70899113]
[1748330160575,0.03721556,109050.0,109040.0,1.70899113]
[1748330162433,0.03721556,109050.0,109040.0,2.08991113]
[1748330162639,0.04638566,109050.0,109040.0,2.08074078]
[1748330163706,0.04638566,109050.0,109040.0,2.08991113]
[1748330164194,0.04638566,109050.0,109040.0,1.75990959]
[1748330164400,0.01887561,109050.0,109040.0,2.08991113]
[1748330165271,0.01887561,109050.0,109040.0,1.81499113]
[1748330165482,0.02804554,109050.0,109040.0,2.08991113]
[1748330165703,0.01887561,109050.0,109040.0,2.08991113]
[1748330165919,0.03721556,109050.0,109040.0,2.08074078]
[1748330166134,0.03721539,109050.0,109040.0,1.75990959]
[1748330166350,0.03721539,109050.0,109040.0,2.04015654]
[1748330166853,0.04638541,109050.0,109040.0,2.04015654]
[1748330167061,0.03721539,109050.0,109040.0,2.04015654]
[1748330167276,0.03721539,109050.0,109040.0,1.64423654]
[1748330168005,0.04638549,109050.0,109040.0,1.63506619]
[1748330168380,0.03721539,109050.0,109040.0,1.64423654]
[1748330168770,0.03721539,109050.0,109040.0,1.33263487]
[1748330168771,0.23671808,109050.0,109040.0,1.33263487]
[1748330168906,0.25251808,109050.0,109040.0,1.61672564]
[1748330169129,0.23671808,109050.0,109040.0,1.62589599]
[1748330169355,0.02804588,109050.0,109040.0,1.36014651]
[1748330169591,0.02804588,109050.0,109040.0,1.63506651]
[1748330170393,0.0372159,109050.0,109040.0,1.33831956]
[1748330170603,0.0372159,109050.0,109040.0,1.63506651]
[1748330171349,0.0372159,109050.0,109040.0,1.44375411]
[1748330171524,0.0372159,109050.0,109040.0,1.62717303]
[1748330172338,0.02804588,109050.0,109040.0,1.62717303]
[1748330174853,0.00970585,109050.0,109040.0,1.62717303]
[1748330175066,0.00970585,109050.0,109040.0,1.65917303]
[1748330175284,0.00053634,109050.0,109040.0,1.65917303]
[1748330175495,0.00970577,109050.0,109040.0,1.65917303]
[1748330175699,0.01887545,109050.0,109040.0,1.65917303]
[1748330176035,0.00970577,109050.0,109040.0,1.65917303]
[1748330176249,0.01887537,109050.0,109040.0,1.65917303]
[1748330176672,0.00970568,109050.0,109040.0,1.65917303]
[1748330177033,0.00970577,109050.0,109040.0,1.65917303]
[1748330177244,0.00970577,109050.0,109040.0,1.68668203]
[1748330178211,0.00053634,109050.0,109040.0,1.98342898]
[1748330178522,4e-05,109060.0,109050.0,0.55091139]
[1748330178557,4e-05,109060.0,109050.0,0.58251139]
[1748330178927,0.00018881,109060.0,109050.0,1.47965939]
[1748330180034,0.00018881,109060.0,109050.0,1.77640634]
[1748330180257,0.00018881,109060.0,109050.0,1.78140634]
[1748330181136,0.00118881,109060.0,109050.0,1.78640634]
[1748330182085,0.00118881,109060.0,109050.0,1.55511499]
[1748330182260,0.00118881,109060.0,109050.0,1.55426743]
[1748330184760,0.00118881,109060.0,109050.0,1.38466743]
[1748330184965,0.00118881,109060.0,109050.0,1.49919443]
[1748330185106,0.00118881,109060.0,109050.0,1.38466743]
[1748330185555,0.00118881,109060.0,109050.0,1.40100043]
[1748330187462,0.00118881,109060.0,109050.0,1.54982843]
[1748330187651,0.00118881,109060.0,109050.0,1.53886143]
[1748330187799,0.00118881,109060.0,109050.0,1.52226143]
[1748330189100,0.00118881,109060.0,109050.0,1.57604243]
[1748330189439,0.00118881,109060.0,109050.0,1.55785543]
[1748330189903,0.00118881,109060.0,109050.0,1.60309143]
[1748330190202,0.00118881,109060.0,109050.0,1.40100043]
[1748330190667,0.00118881,109060.0,109050.0,1.43572568]
[1748330190901,0.0103574,109060.0,109050.0,1.69456568]
[1748330191182,0.01035731,109060.0,109050.0,1.41972568]
[1748330191441,0.01952624,109060.0,109050.0,1.07972568]
[1748330191715,0.0262574,109060.0,109050.0,1.35456568]
[1748330191991,0.01035731,109060.0,109050.0,1.69456568]
[1748330192446,0.01956598,109060.0,109050.0,1.36509093]
[1748330192689,0.0195659,109060.0,109050.0,1.69456568]
[1748330193701,0.02873466,109060.0,109050.0,1.69456568]
[1748330193965,0.0195659,109060.0,109050.0,1.69456568]
[1748330194235,0.25318887,109060.0,109050.0,1.02243397]
[1748330194502,0.07897352,109060.0,109050.0,1.6954135]
[1748330194778,0.07897352,109060.0,109050.0,1.70458326]
[1748330194943,0.25319022,109060.0,109050.0,1.70458326]
[1748330195157,0.25319022,109060.0,109050.0,1.69541358]
[1748330196056,0.24402146,109060.0,109050.0,1.69541358]
[1748330196251,0.23485254,109060.0,109050.0,1.68624382]
[1748330197448,0.23485254,109060.0,109050.0,0.45587856]
[1748330197660,0.22568336,109060.0,109050.0,1.43287041]
[1748330197872,0.22568336,109060.0,109050.0,1.62544244]
[1748330198265,0.22508723,109060.0,109050.0,1.62544244]
[1748330201190,0.22508723,109060.0,109050.0,1.63461229]
[1748330201366,0.22508723,109060.0,109050.0,1.7241338]
[1748330202535,0.22508723,109060.0,109050.0,1.52239192]
[1748330202752,0.04170135,109060.0,109050.0,1.71496404]
[1748330202979,0.00063268,109060.0,109050.0,2.07907806]
[1748330203194,0.01897003,109060.0,109050.0,2.12158406]
[1748330203405,0.01897003,109060.0,109050.0,1.46263456]
[1748330203608,0.01897003,109060.0,109050.0,1.77710931]
[1748330204030,0.02809895,109060.0,109050.0,1.77710931]
[1748330204237,0.01893003,109060.0,109050.0,1.77710931]
[1748330204469,0.02809887,109060.0,109050.0,1.77710931]
[1748330206298,0.00059268,109060.0,109050.0,1.79210931]
[1748330206523,0.00059268,109060.0,109050.0,2.12162406]
[1748330206749,0.0163332,109070.0,109060.0,0.57326681]
[1748330206970,0.0163332,109070.0,109060.0,0.70732091]
[1748330207199,0.0163332,109070.0,109060.0,1.04732091]
[1748330208096,0.0163332,109070.0,109060.0,1.04719208]
[1748330208808,0.0163332,109070.0,109060.0,1.05119208]
[1748330209679,0.0163332,109070.0,109060.0,1.05419208]
[1748330209894,0.0163332,109070.0,109060.0,1.09959208]
[1748330213808,0.0163332,109070.0,109060.0,1.12709308]
[1748330223467,0.0163332,109070.0,109060.0,0.90270925]
[1748330223595,0.0163332,109070.0,109060.0,1.08609454]
[1748330223794,0.0163332,109070.0,109060.0,1.48185454]
[1748330224042,0.0163332,109070.0,109060.0,1.50936131]
[1748330228296,0.06504528,109090.0,109080.0,0.55085338]
[1748330228495,0.06513624,109090.0,109080.0,1.69856798]
[1748330228832,0.03763704,109090.0,109080.0,1.69856798]
[1748330229072,0.04680336,109090.0,109080.0,1.69856798]
[1748330229305,0.03763704,109090.0,109080.0,1.69856798]
[1748330229519,9.096e-05,109090.0,109080.0,1.69856798]
[1748330229736,0.01539096,109090.0,109080.0,1.69856798]
[1748330229960,0.04115694,109090.0,109080.0,1.69856798]
[1748330230207,0.03199096,109090.0,109080.0,1.69956798]
[1748330230866,0.04115694,109090.0,109080.0,1.69956798]
[1748330231645,0.05032309,109090.0,109080.0,1.69956798]
[1748330233231,0.03372309,109090.0,109080.0,1.69956798]
[1748330234011,0.04288932,109090.0,109080.0,1.69956798]
[1748330234660,0.05205572,109090.0,109080.0,1.69956798]
[1748330235459,0.05205572,109090.0,109080.0,2.09528798]
[1748330237112,0.06122221,109090.0,109080.0,2.09528798]
[1748330237758,0.06122221,109090.0,109080.0,2.09484782]
[1748330237962,0.06122221,109090.0,109080.0,1.76537307]
[1748330238178,0.06122221,109090.0,109080.0,2.35833965]
[1748330238399,0.04592221,109090.0,109080.0,2.35833965]
[1748330238619,0.02758932,109090.0,109080.0,2.35833965]
[1748330238841,0.03675572,109090.0,109080.0,2.35833965]
[1748330240715,0.03675572,109090.0,109080.0,1.70489965]
[1748330240928,0.23405879,109090.0,109080.0,1.85144314]
[1748330241145,0.23405879,109090.0,109080.0,2.05312987]
[1748330241358,0.23405879,109090.0,109080.0,2.06229728]
[1748330242325,0.23405879,109090.0,109080.0,2.07146461]
[1748330242559,0.23405879,109090.0,109080.0,2.3679479]
[1748330243886,0.23405879,109090.0,109080.0,2.37711514]
[1748330244098,0.23405879,109090.0,109080.0,2.11362399]
[1748330244552,0.23405879,109090.0,109080.0,0.90151985]
[1748330244780,0.23405879,109090.0,109080.0,0.82626556]
[1748330245003,0.23405879,109090.0,109080.0,1.39012]
[1748330245428,0.23405879,109090.0,109080.0,1.90294709]
[1748330245620,0.22489239,109090.0,109080.0,1.71959543]
[1748330245850,0.23347153,109090.0,109080.0,1.80911694]
[1748330246797,0.23351153,109090.0,109080.0,1.06619543]
[1748330247015,0.23351153,109090.0,109080.0,1.39016]
[1748330254606,0.23351153,109090.0,109080.0,0.73672]
[1748330254824,0.23351153,109090.0,109080.0,1.38884]
[1748330255036,0.23351153,109090.0,109080.0,0.73672]
[1748330255280,0.23351153,109090.0,109080.0,1.38884]
[1748330255501,0.23351153,109090.0,109080.0,0.73672]
[1748330255914,0.23351153,109090.0,109080.0,1.38884]
[1748330260134,0.23351153,109090.0,109080.0,1.114]
[1748330260350,0.23351153,109090.0,109080.0,1.38884]
[1748330261022,0.23351153,109090.0,109080.0,1.18563924]
[1748330261241,0.23351153,109090.0,109080.0,0.99312]
[1748330263938,0.23351153,109090.0,109080.0,1.28970193]
[1748330264887,0.21781153,109090.0,109080.0,1.47305359]
[1748330265101,0.21781153,109090.0,109080.0,1.48222117]
[1748330265987,0.20864496,109090.0,109080.0,1.48222117]
[1748330266707,0.20121153,109090.0,109080.0,1.58091001]
[1748330267262,0.20121153,109090.0,109080.0,1.4913885]
[1748330267469,0.19204496,109090.0,109080.0,1.48222117]
[1748330267710,0.22304496,109090.0,109080.0,1.01486193]
[1748330267921,0.22304496,109090.0,109080.0,1.28970193]
[1748330271110,0.20744496,109090.0,109080.0,1.28970193]
[1748330271641,0.19204496,109090.0,109080.0,1.28970193]
[1748330275581,0.20784496,109090.0,109080.0,1.28970193]
[1748330275742,0.19204496,109090.0,109080.0,1.28970193]
[1748330280335,0.19204496,109090.0,109080.0,1.37922344]
[1748330280675,0.19204496,109090.0,109080.0,1.28970193]
[1748330286574,0.20764496,109090.0,109080.0,1.28970193]
[1748330287657,0.19204496,109090.0,109080.0,1.28970193]
[1748330288724,0.19204496,109090.0,109080.0,0.94970193]
[1748330289717,0.22394496,109090.0,109080.0,0.94970193]
[1748330292235,0.20774496,109090.0,109080.0,0.94970193]
[1748330292462,0.19204496,109090.0,109080.0,0.94970193]
[1748330294246,0.19204496,109090.0,109080.0,0.65312]
[1748330294458,0.19204496,109090.0,109080.0,0.94970193]
[1748330299105,0.19204496,109090.0,109080.0,0.96470193]
[1748330299313,0.19204496,109090.0,109080.0,1.05422344]
[1748330299752,0.19204496,109090.0,109080.0,1.39422344]
[1748330300849,0.19204496,109090.0,109080.0,1.28970193]
[1748330301760,0.20824496,109090.0,109080.0,1.28970193]
[1748330305158,0.22414496,109090.0,109080.0,0.37828]
[1748330305380,0.22414496,109090.0,109080.0,0.65312]
[1748330305611,0.22414496,109090.0,109080.0,0.001]
[1748330305836,0.2558437,109090.0,109080.0,0.6518]
[1748330306288,0.34538926,109090.0,109080.0,0.001]
[1748330306521,0.34538926,109090.0,109080.0,0.27584]
[1748330307721,0.35417661,109090.0,109080.0,0.27584]
[1748330307898,0.4375843,109090.0,109080.0,0.27584]
[1748330308731,0.50097626,109090.0,109080.0,0.27584]
[1748330310076,0.49218891,109090.0,109080.0,0.27584]
[1748330311363,0.42879695,109090.0,109080.0,0.27584]
[1748330311951,0.42879695,109090.0,109080.0,0.001]
[1748330312150,0.42879695,109090.0,109080.0,0.27588]
[1748330313746,0.34538926,109090.0,109080.0,0.27588]
[1748330316741,0.32823137,109090.0,109080.0,0.27588]
[1748330317172,0.32823137,109090.0,109080.0,0.27488]
[1748330317403,0.32923137,109090.0,109080.0,0.27488]
[1748330317605,0.33023137,109090.0,109080.0,0.27488]
[1748330318390,0.4170749,109090.0,109080.0,0.57146193]
[1748330319553,0.33023137,109090.0,109080.0,0.57146193]
[1748330321753,0.31433137,109090.0,109080.0,0.57146193]
[1748330324680,0.33148926,109090.0,109080.0,0.57146193]
[1748330325467,0.33144438,109090.0,109080.0,0.57146193]
[1748330326383,0.34774438,109090.0,109080.0,0.27488]
[1748330326597,0.40496523,109090.0,109080.0,0.57146193]
[1748330330571,0.31524438,109090.0,109080.0,0.57146193]
[1748330331721,0.21115797,109090.0,109080.0,0.90074386]
[1748330332418,0.19404496,109090.0,109080.0,0.90074386]
[1748330334547,0.19404496,109090.0,109080.0,0.60416193]
[1748330344100,0.19404496,109090.0,109080.0,0.90074386]
[1748330344316,0.19404496,109090.0,109080.0,1.05507884]
[1748330344529,0.20321161,109090.0,109080.0,1.05507884]
[1748330346597,0.20321161,109090.0,109080.0,0.60416193]
[1748330347041,0.20321161,109090.0,109080.0,0.58776193]
[1748330347499,0.20321161,109090.0,109080.0,0.31288193]
[1748330347722,0.20321161,109090.0,109080.0,0.58776193]
[1748330349325,0.20321161,109090.0,109080.0,0.60306193]
[1748330351539,0.20321161,109090.0,109080.0,0.58776193]
[1748330352093,0.0107101,109090.0,109080.0,2.0009199]
[1748330352311,0.01713604,109100.0,109090.0,0.58273406]
[1748330352538,0.09268745,109110.0,109100.0,0.57354942]
[1748330352752,0.09268745,109110.0,109100.0,1.2528877]
[1748330352753,0.07435842,109110.0,109100.0,1.2528877]
[1748330352998,0.08352272,109110.0,109100.0,1.32822874]
[1748330353217,0.08352272,109110.0,109100.0,1.65230667]
[1748330353435,0.07435842,109110.0,109100.0,1.65230667]
[1748330354110,0.07435842,109110.0,109100.0,1.66145004]
[1748330355153,0.07435842,109110.0,109100.0,1.66245004]
[1748330355360,0.07435842,109110.0,109100.0,2.05817004]
[1748330355940,0.07435842,109110.0,109100.0,2.1234181]
[1748330358068,0.042,109110.0,109100.0,2.1234181]
[1748330358474,0.042,109110.0,109100.0,1.79421214]
[1748330358681,0.042,109110.0,109100.0,1.83961214]
[1748330359319,0.042,109110.0,109100.0,2.1688181]
[1748330359729,0.042,109110.0,109100.0,2.16935758]
[1748330360875,0.042,109110.0,109100.0,2.17035758]
[1748330361213,0.042,109110.0,109100.0,2.17235758]
[1748330365392,0.042,109110.0,109100.0,1.84315162]
[1748330366592,0.042,109110.0,109100.0,2.17235758]
[1748330368663,0.042,109110.0,109100.0,1.84315162]
[1748330369434,0.042,109110.0,109100.0,1.84261214]
[1748330369644,0.042,109110.0,109100.0,2.1718181]
[1748330372919,0.042,109110.0,109100.0,2.1723083]
[1748330374042,0.042,109110.0,109100.0,1.84310234]
[1748330374258,0.042,109110.0,109100.0,1.84298234]
[1748330374665,0.042,109110.0,109100.0,1.56822234]
[1748330374875,0.042,109110.0,109100.0,1.84298234]
[1748330375455,0.042,109110.0,109100.0,2.21462234]
[1748330375878,0.042,109110.0,109100.0,2.5438283]
[1748330376093,0.042,109110.0,109100.0,2.21462234]
[1748330376311,0.0511643,109110.0,109100.0,2.21462234]
[1748330376492,0.042,109110.0,109100.0,2.21462234]
[1748330377972,0.042,109110.0,109100.0,2.47810352]
[1748330378691,0.0511643,109110.0,109100.0,2.47810352]
[1748330378947,0.042,109110.0,109100.0,2.47810352]
[1748330381217,0.042,109110.0,109100.0,2.43270352]
[1748330381425,0.042,109110.0,109100.0,2.43266352]
[1748330382073,0.05116447,109110.0,109100.0,2.15794352]
[1748330382259,0.042,109110.0,109100.0,2.43266352]
[1748330382635,0.05116439,109110.0,109100.0,2.43266352]
[1748330384203,0.042,109110.0,109100.0,2.43266352]
[1748330384717,0.05116439,109110.0,109100.0,2.43266352]
[1748330390642,0.042,109110.0,109100.0,2.43266352]
[1748330391069,0.05116439,109110.0,109100.0,2.43266352]
[1748330391777,0.042,109110.0,109100.0,2.15794352]
[1748330392001,0.27543086,109110.0,109100.0,0.97337617]
[1748330392218,0.27543086,109110.0,109100.0,1.1943787]
[1748330392438,0.28400782,109110.0,109100.0,1.43568977]
[1748330392648,0.28400782,109110.0,109100.0,1.71040977]
[1748330393074,0.28400782,109110.0,109100.0,1.03655377]
[1748330393291,0.28400782,109110.0,109100.0,1.3865702]
[1748330393735,0.28400782,109110.0,109100.0,0.7718502]
[1748330394143,0.29854867,109110.0,109100.0,0.7718502]
[1748330394361,0.29854867,109110.0,109100.0,0.3761302]
[1748330394563,0.7657622,109110.0,109100.0,0.0044902]
[1748330394787,1.12287652,109110.0,109100.0,0.004]
[1748330394988,1.14855277,109110.0,109100.0,0.004]
[1748330395166,1.16242006,109110.0,109100.0,0.002]
[1748330395350,1.16242006,109110.0,109080.0,0.37164]
[1748330395351,0.2162086,109090.0,109080.0,0.37164]
[1748330395556,0.2470086,109090.0,109080.0,0.37164]
[1748330395946,0.25558556,109090.0,109080.0,0.37164]
[1748330396372,0.25558556,109090.0,109080.0,0.37364]
[1748330396592,0.25558556,109090.0,109080.0,0.37564]
[1748330397031,0.2470086,109090.0,109080.0,0.37564]
[1748330398627,0.2470086,109090.0,109080.0,0.37364]
[1748330398782,0.2480086,109090.0,109080.0,0.37364]
[1748330399108,0.2480086,109090.0,109080.0,0.37164]
[1748330400112,0.2480086,109090.0,109080.0,0.64644]
[1748330401281,0.00916783,109070.0,109060.0,1.03616362]
[1748330401503,0.21085346,109080.0,109070.0,0.57975689]
[1748330401685,0.20168639,109080.0,109070.0,0.99878695]
[1748330401973,0.20168639,109080.0,109070.0,1.08830846]
[1748330402219,0.20168639,109080.0,109070.0,0.75882396]
[1748330402581,0.20168639,109080.0,109070.0,0.76799221]
[1748330402796,0.20168639,109080.0,109070.0,0.76899221]
[1748330403024,0.20168639,109080.0,109070.0,0.46224151]
[1748330403218,0.20168639,109080.0,109070.0,0.73708151]
[1748330403548,0.20168639,109080.0,109070.0,0.73808151]
[1748330409271,0.20168639,109080.0,109070.0,0.75368151]
[1748330411043,0.21413486,109090.0,109080.0,1.17345112]
[1748330411257,0.21413486,109090.0,109080.0,1.26297263]
[1748330413113,0.21513486,109090.0,109080.0,1.26297263]
[1748330413508,0.18433486,109090.0,109080.0,1.26297263]
[1748330415869,0.18433486,109090.0,109080.0,1.09408922]
[1748330416679,0.21513486,109090.0,109080.0,1.36892922]
[1748330420490,0.21513486,109090.0,109080.0,1.27940771]
[1748330421372,0.21513486,109090.0,109080.0,1.00456771]
[1748330421607,0.22967571,109090.0,109080.0,1.27940771]
[1748330422117,0.22967571,109090.0,109080.0,1.00456771]
[1748330422332,0.23822581,109090.0,109080.0,1.27940771]
[1748330422994,0.23822581,109090.0,109080.0,1.36892922]
[1748330423449,0.25535166,109090.0,109080.0,1.36892922]
[1748330424132,0.25535166,109090.0,109080.0,1.27940771]
[1748330424661,0.24081081,109090.0,109080.0,1.27940771]
[1748330425497,0.24958255,109090.0,109080.0,1.27940771]
[1748330425997,0.23378255,109090.0,109080.0,1.27940771]
[1748330430301,0.23378255,109090.0,109080.0,1.64996771]
[1748330431666,0.23378255,109090.0,109080.0,1.73948922]
[1748330433642,0.21878255,109090.0,109080.0,1.73948922]
[1748330434258,0.21001081,109090.0,109080.0,1.73948922]
[1748330435206,0.21001081,109090.0,109080.0,2.10694121]
[1748330435207,0.19288496,109090.0,109080.0,2.10694121]
[1748330435457,0.02788282,109090.0,109080.0,2.39952126]
[1748330435676,0.22038425,109090.0,109080.0,2.4086885]
[1748330435917,0.20266792,109090.0,109080.0,2.39952126]
[1748330436125,0.20266792,109090.0,109080.0,2.40868833]
[1748330436762,0.20266792,109090.0,109080.0,2.39952126]
[1748330437208,0.20166792,109090.0,109080.0,2.40968833]
[1748330438157,0.20166792,109090.0,109080.0,2.40152126]
[1748330439239,0.20166792,109090.0,109080.0,2.12664126]
[1748330439463,0.20166792,109090.0,109080.0,2.39231393]
[1748330439673,0.19250143,109090.0,109080.0,2.39231393]
[1748330440700,0.18333486,109090.0,109080.0,2.18479478]
[1748330440908,0.18333486,109090.0,109080.0,2.08024922]
[1748330441117,0.19983486,109090.0,109080.0,1.65072771]
[1748330441343,0.18333486,109090.0,109080.0,1.65072771]
[1748330443362,0.18333486,109090.0,109080.0,1.66602771]
[1748330443599,0.18333486,109090.0,109080.0,1.68132771]
[1748330443813,0.18333486,109090.0,109080.0,1.77084922]
[1748330444020,0.18333486,109090.0,109080.0,1.96336846]
[1748330444203,0.18333486,109090.0,109080.0,1.77084922]
[1748330445055,0.18337486,109090.0,109080.0,1.77084922]
[1748330447285,0.18337486,109090.0,109080.0,1.75554922]
[1748330449468,0.18337486,109090.0,109080.0,1.77144922]
[1748330453410,0.18337486,109090.0,109080.0,1.75554922]
[1748330455812,0.18337486,109090.0,109080.0,1.78305222]
[1748330456238,0.18337486,109090.0,109080.0,1.79885222]
[1748330457569,0.19254109,109090.0,109080.0,1.77540851]
[1748330457781,4e-05,109090.0,109080.0,2.7686955]
[1748330457992,4e-05,109090.0,109080.0,2.79197505]
[1748330458198,4e-05,109090.0,109080.0,2.7686955]
[1748330458657,4e-05,109090.0,109080.0,2.7676955]
[1748330458867,4e-05,109090.0,109080.0,2.7716955]
[1748330459887,4e-05,109090.0,109080.0,2.7706955]
[1748330460083,4e-05,109090.0,109080.0,2.7736955]
[1748330465934,4e-05,109090.0,109080.0,2.78823635]
[1748330475779,4e-05,109090.0,109080.0,2.51339635]
[1748330475995,4e-05,109090.0,109080.0,2.78815635]